bitfinex/quotes_ETHUSD_20240711
["timestamp","ask_amount","ask_price","bid_price","bid_amount"]
[1720714739314,1.45,3129.2,3129.0,3.19587]
[1720714739519,1.45,3129.2,3129.0,6.3917]
[1720714739680,1.45,3129.2,3129.1,3.1958]
[1720714740527,2.337,3129.6,3129.1,3.1958]
[1720714740528,1.45,3129.4,3129.1,3.1958]
[1720714740677,1.45,3129.4,3129.3,3.1956]
[1720714741196,1.45,3129.6,3129.3,3.1956]
[1720714741400,1.45,3129.4,3129.3,3.19551]
[1720714741588,1.45,3129.4,3129.1,3.19574]
[1720714741589,1.45,3129.4,3129.1,3.1957]
[1720714741787,1.45,3129.4,3129.2,6.19565]
[1720714742120,0.66388292,3129.6,3129.3,3.1956]
[1720714742121,2.11388292,3129.6,3129.3,3.1956]
[1720714742295,2.11388292,3129.6,3129.4,3.19546]
[1720714742889,2.11388292,3129.6,3129.5,0.08142404]
[1720714743096,2.19726878,3129.6,3129.5,0.08142404]
[1720714743392,1.45,3129.6,3129.5,3.27681404]
[1720714743583,0.66388292,3129.7,3129.6,6.39058]
[1720714743784,2.44582438,3129.9,3129.6,6.39058]
[1720714743785,2.11388292,3129.9,3129.8,3.19509]
[1720714744020,1.45,3129.9,3129.8,3.27643222]
[1720714744423,0.66388292,3130.1,3129.8,3.27643222]
[1720714744424,1.45,3130.1,3130.0,6.38976]
[1720714744787,1.45,3130.1,3130.0,6.47104769]
[1720714745185,0.66503917,3130.2,3130.0,6.47104769]
[1720714745186,0.66503917,3130.2,3130.1,3.19478]
[1720714745392,1.45,3130.2,3130.1,3.27604042]
[1720714745933,1.53336859,3130.2,3130.1,3.27604042]
[1720714746230,2.51777523,3130.2,3130.1,0.08126042]
[1720714746442,2.85020315,3130.2,3130.1,0.08126042]
[1720714746656,1.45,3130.0,3129.9,3.19497]
[1720714746859,2.1979661,3130.0,3129.6,3.19523]
[1720714747006,2.11459751,3130.0,3129.8,3.19503]
[1720714747208,2.11459751,3130.0,3129.8,3.19501]
[1720714747674,0.08337955,3129.9,3129.8,3.19501]
[1720714747824,0.0833792,3129.9,3129.8,3.19501]
[1720714748166,0.08337923,3129.9,3129.8,3.19501]
[1720714748324,2.11459751,3130.0,3129.8,3.19501]
[1720714748984,2.11459751,3130.0,3129.3,2.262]
[1720714748985,1.45,3129.6,3129.3,2.262]
[1720714749105,1.45,3129.2,3129.0,3.19586]
[1720714749844,1.45,3129.2,3129.0,6.3917]
[1720714750045,0.66459751,3129.3,3129.1,3.1958]
[1720714750213,1.45,3129.4,3129.1,3.1958]
[1720714750410,0.99689626,3129.6,3129.4,3.1955]
[1720714750411,2.11459751,3129.6,3129.4,3.1955]
[1720714750606,1.45,3129.6,3129.4,3.1955]
[1720714751350,1.45,3129.6,3129.5,3.19539]
[1720714751503,0.66459751,3129.7,3129.5,3.19539]
[1720714751709,1.45,3129.6,3129.5,3.19539]
[1720714752307,1.45,3129.6,3129.5,3.1953]
[1720714752766,0.66466582,3129.8,3129.6,3.19525]
[1720714752919,3.59473165,3130.1,3129.7,5.45717]
[1720714752920,0.66466582,3130.0,3129.7,5.45717]
[1720714753121,2.11466582,3130.2,3130.1,3.19478]
[1720714753324,1.53337087,3130.2,3130.1,3.19478]
[1720714753522,0.66466582,3130.3,3130.1,3.19478]
[1720714753712,0.74803315,3130.3,3130.1,3.19478]
[1720714754346,0.74803315,3130.3,3130.1,3.19468]
[1720714754656,0.66466582,3130.6,3130.4,3.19447]
[1720714754865,0.0833603,3130.6,3130.4,3.19441]
[1720714755147,2.11539819,3130.7,3130.6,3.19427]
[1720714755335,0.74875633,3130.7,3130.6,3.19427]
[1720714755643,0.08335814,3130.7,3130.6,3.19427]
[1720714755959,0.66539819,3130.8,3130.7,3.19417]
[1720714756244,0.74875318,3130.8,3130.7,3.19417]
[1720714756560,0.99809729,3130.9,3130.7,3.19417]
[1720714756561,0.66539819,3130.9,3130.7,3.19417]
[1720714756758,1.45,3130.8,3130.7,3.19417]
[1720714757147,1.53335511,3130.8,3130.7,3.19417]
[1720714757348,1.45,3130.8,3130.7,3.19417]
[1720714757864,2.19875359,3130.8,3130.7,3.19417]
[1720714758072,1.5333554,3130.8,3130.7,3.27523906]
[1720714758367,0.66539819,3130.8,3130.7,7.34256797]
[1720714758531,1.45,3131.0,3130.8,3.19407]
[1720714758736,1.45,3131.0,3130.9,0.08101456]
[1720714759697,1.45,3131.3,3131.2,3.19366]
[1720714759854,1.45,3131.0,3130.9,3.27497456]
[1720714760045,1.45,3131.0,3130.9,3.19396]
[1720714760243,1.45,3130.8,3130.6,3.19419]
[1720714760481,1.45,3130.6,3130.5,2.262]
[1720714760651,1.45,3130.6,3130.5,5.262]
[1720714761581,1.45,3130.6,3130.5,8.45636]
[1720714761942,1.45,3130.4,3130.1,2.262]
[1720714762190,1.45,3130.4,3129.7,11.9205]
[1720714762499,1.45,3130.4,3130.1,3.19476]
[1720714762808,1.45,3130.4,3130.2,3.19461]
[1720714763283,1.45,3130.4,3130.1,3.19471]
[1720714763485,0.66539819,3130.6,3129.7,3.5405779]
[1720714763486,1.45,3130.2,3129.7,5.262]
[1720714763644,1.45,3130.2,3129.8,3.19508]
[1720714764754,1.45,3129.8,3129.3,5.45753]
[1720714764963,1.45,3129.5,3129.3,5.45753]
[1720714765464,1.45,3129.5,3129.4,3.1955]
[1720714767297,2.11539819,3130.0,3129.4,0.86531]
[1720714767501,1.45,3130.0,3129.8,3.19503]
[1720714768513,1.45,3130.0,3129.9,3.19499]
[1720714769029,1.45,3130.0,3129.8,3.19506]
[1720714769208,1.45,3130.0,3129.9,3.19499]
[1720714769744,1.45,3130.0,3129.7,2.262]
[1720714770019,1.45,3130.0,3129.9,3.19499]
[1720714773011,1.45,3130.0,3129.9,0.07599081]
[1720714773516,2.4103174,3130.0,3129.9,0.07599081]
[1720714773924,1.45,3129.8,3129.7,2.262]
[1720714774130,1.45,3129.8,3129.7,5.45719]
[1720714774331,1.45,3129.8,3129.6,3.19523]
[1720714774562,0.6654971,3130.0,3129.4,6.19545]
[1720714774563,1.45,3129.6,3129.4,9.39088]
[1720714774743,1.45,3129.6,3129.5,3.19539]
[1720714774945,1.45,3129.6,3129.5,6.19539]
[1720714776377,1.45,3129.6,3129.4,3.19542]
[1720714776568,1.45,3129.6,3129.5,6.19539]
[1720714777734,1.45,3129.6,3129.5,3.19539]
[1720714778132,1.07654734,3130.2,3129.5,3.19539]
[1720714778133,1.45,3129.8,3129.5,3.19539]
[1720714778469,1.45,3129.8,3129.7,3.19519]
[1720714778629,1.45,3130.0,3129.9,3.19499]
[1720714782068,1.45,3130.0,3129.9,6.38998]
[1720714782433,1.45,3130.2,3130.1,3.19478]
[1720714782735,1.45,3130.2,3130.0,3.19485]
[1720714782925,1.45,3130.2,3130.0,3.19483]
[1720714782926,2.11448588,3130.2,3130.0,3.19483]
[1720714783131,1.45,3130.2,3130.0,3.19482]
[1720714783363,1.45,3130.0,3129.9,3.19495]
[1720714784857,2.19831985,3130.0,3129.9,3.19495]
[1720714785178,2.19831985,3130.0,3129.7,5.45718]
[1720714785337,0.74832692,3129.9,3129.7,3.19518]
[1720714785536,1.45,3129.8,3129.5,3.19537]
[1720714785742,2.11494691,3129.8,3129.6,3.0]
[1720714786177,1.45,3129.6,3129.3,5.45753]
[1720714786388,1.45,3129.4,3129.3,5.45753]
[1720714786551,1.45,3129.4,3129.3,8.45753]
[1720714787950,2.11494691,3129.6,3129.4,3.19544]
[1720714788156,1.45,3129.6,3129.4,3.19544]
[1720714788401,1.45,3129.6,3129.5,3.27154331]
[1720714791283,1.45,3129.6,3129.5,6.46693331]
[1720714796630,1.45,3129.6,3129.5,0.07615331]
[1720714796873,1.45,3129.6,3129.2,2.262]
[1720714797066,1.45,3129.6,3129.5,0.07625159]
[1720714797265,1.45,3129.6,3129.2,2.262]
[1720714797427,2.11615388,3129.6,3129.5,3.19539]
[1720714797628,2.11615388,3129.6,3129.5,0.07625159]
[1720714797629,3.30597983,3129.6,3129.5,0.07625159]
[1720714797823,2.63006196,3129.6,3129.4,3.0]
[1720714798055,2.54667495,3129.6,3129.5,0.07625159]
[1720714798282,7.27054921,3129.6,3129.5,0.07625159]
[1720714798570,5.93824144,3129.6,3129.5,0.07625159]
[1720714798736,1.45,3129.0,3128.9,3.19599]
[1720714800122,1.45,3129.0,3128.8,2.262]
[1720714800320,1.45,3129.0,3128.8,5.45805]
[1720714800523,1.45,3129.0,3128.9,3.19601]
[1720714801161,0.66561777,3129.2,3129.1,3.1958]
[1720714801371,0.66561777,3129.2,3128.9,0.865406]
[1720714801372,0.66562489,3129.5,3129.4,3.19541]
[1720714801683,0.66562489,3129.5,3128.9,0.865406]
[1720714801684,1.45,3129.0,3128.9,3.19591]
[1720714801861,1.45,3129.0,3128.8,2.262]
[1720714802361,1.45,3129.0,3128.9,3.19601]
[1720714803268,1.45,3129.0,3128.9,3.27252999]
[1720714803470,0.66554712,3129.2,3128.9,3.27252999]
[1720714803471,1.45,3129.2,3129.0,3.19582]
[1720714803785,2.11554712,3129.4,3129.3,3.1956]
[1720714804085,2.19893951,3129.4,3129.3,0.0764301]
[1720714804373,2.19893951,3129.4,3129.3,3.2720301]
[1720714804555,2.19893951,3129.4,3129.3,3.1956]
[1720714804758,2.19893951,3129.4,3129.3,3.2720301]
[1720714805075,0.08339239,3129.4,3129.3,6.4676301]
[1720714805235,2.11554712,3129.6,3129.4,3.1955]
[1720714805440,0.74893533,3129.5,3129.4,3.1955]
[1720714805652,0.08338821,3129.5,3129.4,3.1955]
[1720714806343,0.74893533,3129.5,3129.4,3.1955]
[1720714806958,0.74893533,3129.5,3129.2,5.4577]
[1720714806959,1.45,3129.4,3129.2,5.4577]
[1720714807154,1.45,3129.4,3129.3,3.1956]
[1720714807461,2.53248559,3129.4,3129.3,3.1956]
[1720714808180,1.53339214,3129.4,3129.3,3.1956]
[1720714808339,1.53339214,3129.4,3129.3,6.3912]
[1720714808675,1.45,3129.4,3129.3,6.3912]
[1720714808873,1.45,3129.4,3129.3,9.3912]
[1720714809052,2.19946332,3129.4,3129.3,9.3912]
[1720714809562,0.66607604,3129.6,3129.5,3.19539]
[1720714809875,2.11607604,3129.7,3129.6,3.19529]
[1720714810042,1.53337872,3129.7,3129.6,3.19529]
[1720714810381,1.53338109,3129.7,3129.6,6.39058]
[1720714810785,2.19930819,3129.7,3129.6,6.39058]
[1720714810998,2.19940597,3129.7,3129.6,6.39058]
[1720714811291,2.19945805,3129.7,3129.6,6.39058]
[1720714811493,0.74945805,3129.7,3129.6,7.579638]
[1720714811659,1.45,3129.9,3129.8,6.39018]
[1720714811660,2.11607696,3129.9,3129.8,6.39018]
[1720714811847,2.19944973,3129.9,3129.8,6.39018]
[1720714812050,1.45,3129.9,3129.8,6.39018]
[1720714812441,2.19944815,3129.9,3129.8,6.39018]
[1720714813174,1.53337119,3129.9,3129.8,6.39018]
[1720714813495,1.45,3129.9,3129.8,7.3743038]
[1720714813699,0.66579325,3130.0,3129.9,3.19499]
[1720714813995,0.74916352,3130.0,3129.9,3.27119235]
[1720714814656,0.74916352,3130.0,3129.9,6.46618235]
[1720714816802,0.74916378,3130.0,3129.9,6.46618235]
[1720714818112,0.74916378,3130.0,3129.9,3.27119235]
[1720714818896,1.06894915,3130.0,3129.9,0.07620235]
[1720714819102,1.06894915,3130.0,3129.7,3.0]
[1720714819103,1.45,3129.8,3129.7,3.0]
[1720714819264,2.19899857,3129.8,3129.7,3.07600905]
[1720714819466,2.19899857,3129.8,3129.7,6.27119905]
[1720714819776,2.19899857,3129.8,3129.7,0.07600905]
[1720714820008,5.25638612,3129.8,3129.7,0.07600905]
[1720714820175,5.25638612,3129.8,3128.8,5.45805]
[1720714820176,1.45,3129.1,3128.8,5.45805]
[1720714820501,1.45,3129.1,3129.0,3.1959]
[1720714820713,2.19866937,3129.1,3129.0,0.07383889]
[1720714821064,1.45,3128.9,3128.8,8.65409]
[1720714821278,1.45,3128.9,3128.8,8.72798347]
[1720714821718,2.11527298,3129.2,3129.1,3.1958]
[1720714821903,2.11527298,3129.2,3129.1,6.3916]
[1720714821904,1.45,3129.2,3129.1,6.3916]
[1720714822075,1.45,3129.2,3129.1,3.26961161]
[1720714822259,2.19866584,3129.2,3129.1,3.26961161]
[1720714822664,1.53339286,3129.2,3129.1,3.26961161]
[1720714823059,0.08339286,3129.2,3129.1,3.26961161]
[1720714823262,0.66534199,3129.3,3129.2,3.1957]
[1720714823464,0.66534199,3129.4,3129.2,3.26960567]
[1720714823664,1.45,3129.5,3129.2,3.26960567]
[1720714823864,9.8082,3129.8,3129.3,6.3912]
[1720714823865,0.74874116,3129.4,3129.3,6.3912]
[1720714824112,0.6653521,3129.6,3129.4,3.1955]
[1720714824267,0.74873619,3129.6,3129.5,0.07381106]
[1720714824462,0.74873619,3129.6,3129.5,6.46459106]
[1720714824663,0.08338409,3129.6,3129.5,6.46459106]
[1720714824919,0.6653521,3129.8,3129.7,6.39038]
[1720714825419,2.44802816,3130.0,3129.7,0.62369478]
[1720714825420,1.45,3130.0,3129.7,0.62369478]
[1720714825576,1.45,3130.0,3129.8,0.55]
[1720714825959,1.45,3130.0,3129.9,0.07363598]
[1720714826277,0.6653521,3130.1,3130.0,3.19488]
[1720714826464,1.99605632,3130.9,3130.0,3.19488]
[1720714826465,0.6653521,3130.5,3130.0,3.26746031]
[1720714826668,0.6653521,3130.5,3130.4,3.19447]
[1720714826899,1.08138614,3130.6,3130.5,3.19437]
[1720714826900,0.6653521,3130.6,3130.5,3.19437]
[1720714827102,2.11557129,3130.7,3130.6,6.38854]
[1720714827267,0.08335093,3130.7,3130.6,6.46184894]
[1720714827574,2.19892503,3130.7,3130.6,6.46184894]
[1720714828807,0.99802816,3130.9,3130.7,6.38834]
[1720714828808,0.66557129,3130.8,3130.7,6.38834]
[1720714829021,0.74892133,3130.8,3130.7,6.38834]
[1720714829185,0.74892133,3130.8,3130.7,6.46162168]
[1720714829582,0.74892329,3130.8,3130.7,6.46162168]
[1720714830187,2.11557129,3130.9,3130.8,3.19407]
[1720714830408,2.19892155,3130.9,3130.8,3.19407]
[1720714830626,1.53335026,3130.9,3130.8,3.26732443]
[1720714830770,2.19830027,3130.9,3130.8,3.26732443]
[1720714830971,2.19827894,3130.9,3130.8,3.26732443]
[1720714831171,1.53335026,3130.9,3130.8,3.26732443]
[1720714831747,1.91955852,3130.9,3130.8,0.07325443]
[1720714832224,2.91758668,3130.9,3130.8,3.26732443]
[1720714832512,1.53335026,3130.9,3130.8,3.26732443]
[1720714832667,2.19799014,3130.9,3130.7,3.19411]
[1720714832866,0.08335395,3130.8,3130.7,3.19411]
[1720714833309,2.11463988,3130.9,3130.7,6.38822]
[1720714833520,2.11463988,3130.9,3130.8,3.19407]
[1720714833664,1.45,3130.7,3130.6,3.19426]
[1720714834319,1.53335846,3130.7,3130.6,3.19426]
[1720714834821,1.45,3130.3,3130.1,8.45677]
[1720714835029,1.45,3130.3,3130.1,11.65145]
[1720714835306,1.45,3130.3,3130.2,3.19468]
[1720714835518,1.45,3130.5,3130.4,3.19447]
[1720714836019,1.45,3130.5,3130.2,6.19461]
[1720714836020,1.45,3130.3,3130.2,3.0]
[1720714836171,1.45,3130.3,3130.1,5.262]
[1720714836629,1.45,3130.3,3129.8,3.19503]
[1720714836630,1.45,3129.9,3129.8,3.19503]
[1720714838097,1.53338162,3129.9,3129.7,5.45718]
[1720714838288,1.45,3129.9,3129.7,5.45718]
[1720714839014,1.45,3129.9,3129.8,6.39018]
[1720714839228,0.66441236,3130.2,3130.0,6.38976]
[1720714839425,2.11441236,3130.3,3130.1,2.262]
[1720714840172,1.45,3130.3,3130.2,3.19468]
[1720714840571,1.45,3130.3,3130.1,2.262]
[1720714840827,0.95922738,3130.2,3130.1,2.262]
[1720714840993,0.29481502,3130.2,3130.1,2.262]
[1720714842418,0.21144124,3130.2,3130.1,2.262]
[1720714842712,0.29481936,3130.2,3130.1,2.262]
[1720714842911,0.29481936,3130.2,3129.7,3.19515]
[1720714842912,1.45,3129.8,3129.7,5.45715]
[1720714843314,1.45,3129.8,3129.7,2.262]
[1720714844083,1.45,3129.8,3129.7,5.45719]
[1720714845532,1.45,3129.8,3129.7,2.262]
[1720714846091,1.45,3129.4,3129.3,5.45758]
[1720714847637,1.45,3129.4,3129.3,8.65318]
[1720714848172,1.45,3129.7,3129.6,3.19529]
[1720714848473,1.45,3129.7,3129.6,8.65258]
[1720714848616,1.45,3129.7,3129.6,9.5911404]
[1720714849622,1.45,3129.7,3129.6,8.7258824]
[1720714849851,1.45,3129.7,3129.6,5.5305924]
[1720714850033,1.45,3129.7,3129.6,3.2685924]
[1720714850623,1.45,3129.7,3129.6,0.0733024]
[1720714850917,1.45,3129.7,3129.5,3.19537]
[1720714851120,1.45,3129.5,3129.4,3.19545]
[1720714851323,1.45,3129.5,3129.4,6.39095]
[1720714851634,1.45,3129.7,3129.6,3.19529]
[1720714851957,1.45,3129.7,3129.6,8.65258]
[1720714853951,1.45,3129.7,3129.6,5.45729]
[1720714854138,1.45,3129.7,3129.6,2.262]
[1720714854583,1.45,3129.7,3129.6,5.45729]
[1720714856989,1.45,3129.7,3129.6,8.65258]
[1720714858488,1.45,3129.9,3129.8,6.39018]
[1720714859351,1.45,3130.1,3130.0,6.38976]
[1720714859550,1.45,3130.1,3130.0,8.65176]
[1720714859757,0.99764957,3130.4,3130.0,8.65176]
[1720714859758,2.11509971,3130.4,3130.0,2.262]
[1720714860071,1.45,3130.4,3130.3,6.38916]
[1720714860270,1.45,3130.5,3130.2,3.19467]
[1720714860574,1.45,3130.5,3130.4,6.38894]
[1720714860984,0.66509971,3130.7,3130.6,3.19427]
[1720714861280,0.66509971,3130.8,3130.7,3.19417]
[1720714861486,0.74845575,3130.8,3130.7,3.19417]
[1720714862258,1.45,3130.9,3130.8,3.19407]
[1720714862483,2.19852658,3130.9,3130.8,3.19407]
[1720714862850,2.19852658,3130.9,3130.8,3.26697386]
[1720714863783,2.19852658,3130.9,3130.8,0.07290386]
[1720714863784,2.53117201,3130.9,3130.8,0.07290386]
[1720714863990,4.03121057,3130.9,3130.8,0.07290386]
[1720714864193,1.45,3130.7,3130.6,3.1942]
[1720714864391,2.19828767,3130.7,3130.6,3.1942]
[1720714864545,1.53335144,3130.7,3130.6,3.1942]
[1720714864749,1.45,3130.5,3130.4,3.0]
[1720714864989,1.45,3130.5,3130.4,6.19447]
[1720714865974,0.66493623,3130.8,3130.7,9.58251]
[1720714866174,1.45,3131.1,3131.0,6.38772]
[1720714866376,1.45,3131.3,3131.2,3.19366]
[1720714866585,1.45,3131.3,3131.2,6.38732]
[1720714867475,1.45,3131.3,3131.2,3.19366]
[1720714867780,1.45,3131.1,3131.0,5.45577]
[1720714867990,1.45,3131.1,3131.0,3.19377]
[1720714868163,1.45,3130.5,3130.4,3.0]
[1720714868365,1.45,3130.5,3130.4,9.38886]
[1720714869154,0.66493623,3130.9,3130.2,2.262]
[1720714869155,1.45,3130.3,3130.2,5.45661]
[1720714869369,1.45,3130.3,3130.1,3.1947]
[1720714869593,1.45,3130.3,3130.2,3.19468]
[1720714870491,1.53337055,3130.3,3130.2,3.19468]
[1720714870788,1.45,3130.3,3130.2,8.65136]
[1720714872188,1.45,3130.3,3130.2,5.45668]
[1720714872697,1.45,3130.3,3130.2,5.52683497]
[1720714873655,1.45,3130.3,3130.2,2.33215497]
[1720714873888,2.19824208,3130.3,3130.2,5.52683497]
[1720714874392,1.5333716,3130.3,3130.2,5.52683497]
[1720714874601,1.45,3130.3,3130.2,5.52683497]
[1720714875886,1.45,3130.3,3130.2,2.33215497]
[1720714875887,1.66151213,3130.3,3130.2,2.33215497]
[1720714876093,2.40999831,3130.3,3130.2,0.07015497]
[1720714876279,2.40999831,3130.3,3130.0,3.19479]
[1720714876462,2.40999831,3130.3,3130.2,0.07015497]
[1720714876463,2.11512128,3130.3,3130.2,0.07015497]
[1720714876656,1.53336929,3130.3,3130.1,3.19475]
[1720714876856,0.66512128,3130.4,3130.3,3.19458]
[1720714877070,1.45,3130.5,3130.2,2.33215497]
[1720714877284,1.45,3130.5,3130.4,6.38894]
[1720714877758,1.45,3130.5,3130.4,6.45904045]
[1720714877962,1.45,3130.5,3130.4,7.3311445]
[1720714878197,1.45,3130.8,3130.7,3.19417]
[1720714878497,1.45,3130.8,3130.7,3.26418868]
[1720714878997,2.19842987,3130.8,3130.7,3.26418868]
[1720714879207,2.19842987,3130.8,3130.7,6.45835868]
[1720714879208,1.45,3130.8,3130.7,6.45835868]
[1720714880493,1.45,3130.8,3130.7,3.26418868]
[1720714881004,1.45,3130.8,3130.7,6.45835868]
[1720714881772,1.45,3130.8,3130.7,3.26418868]
[1720714881965,1.53335551,3130.8,3130.7,3.26418868]
[1720714882286,1.5333559,3130.8,3130.7,0.07001868]
[1720714882484,1.7696044,3130.8,3130.7,0.07001868]
[1720714882662,4.35076293,3130.8,3130.7,0.07001868]
[1720714882863,1.45,3130.4,3130.3,6.38903]
[1720714883072,1.45,3130.4,3130.3,6.45928911]
[1720714883312,1.45,3130.4,3130.3,0.07025911]
[1720714883497,1.45,3130.4,3130.2,5.45663]
[1720714883664,1.45,3130.4,3130.3,0.07025911]
[1720714883864,1.45,3130.4,3130.3,3.19458]
[1720714884064,1.45,3130.4,3130.3,3.26483911]
[1720714884294,1.45,3130.4,3130.3,0.07025911]
[1720714884624,1.45,3130.4,3129.9,3.19493]
[1720714884625,1.45,3130.0,3129.9,3.19493]
[1720714886214,1.45,3130.0,3129.8,2.262]
[1720714886584,1.45,3129.8,3129.7,3.19513]
[1720714888536,1.45,3129.8,3129.7,3.19519]
[1720714888705,1.45,3129.5,3129.4,2.262]
[1720714889430,1.45,3129.5,3129.4,5.4575]
[1720714891199,1.45,3129.5,3129.4,8.653]
[1720714891618,2.1148153,3129.9,3129.8,3.19509]
[1720714891818,1.45,3129.9,3129.8,5.45709]
[1720714892647,1.45,3129.9,3129.8,2.262]
[1720714892946,1.45,3129.9,3129.8,0.0708682]
[1720714892947,2.50839676,3129.9,3129.8,0.0708682]
[1720714893126,2.84040412,3129.9,3129.5,3.19535]
[1720714893322,0.74696476,3129.8,3129.5,6.39065]
[1720714893549,2.75702576,3129.9,3129.5,6.39065]
[1720714893550,2.1135864,3129.9,3129.5,6.39065]
[1720714893758,0.08338626,3129.8,3129.6,3.19529]
[1720714893917,1.45,3129.7,3129.6,6.39058]
[1720714895055,1.53338765,3129.7,3129.6,3.19529]
[1720714895351,1.45,3129.7,3129.6,3.19529]
[1720714895511,1.45,3129.5,3129.4,2.262]
[1720714895718,1.45,3129.5,3129.4,5.4575]
[1720714898120,1.45,3129.5,3129.4,2.262]
[1720714898646,1.45,3129.3,3129.2,3.0]
[1720714898964,1.45,3129.3,3129.1,3.19573]
[1720714899272,1.45,3129.3,3129.2,6.1957]
[1720714900257,1.45,3129.3,3129.1,3.19573]
[1720714901023,1.45,3129.1,3129.0,2.262]
[1720714901423,1.45,3128.8,3128.7,3.19619]
[1720714901624,1.45,3128.8,3128.6,2.262]
[1720714902552,1.45,3128.8,3127.9,2.4823]
[1720714902553,1.45,3128.3,3128.2,5.45865]
[1720714904052,1.45,3128.7,3128.2,2.262]
[1720714904260,1.45,3128.9,3128.8,3.19611]
[1720714904625,1.45,3128.9,3128.8,3.26525758]
[1720714905343,1.45,3128.9,3128.8,0.06914758]
[1720714905751,1.45,3128.9,3128.7,3.19614]
[1720714905943,1.45,3128.9,3128.8,0.0690924]
[1720714906132,1.45,3128.9,3128.6,2.262]
[1720714906461,1.45,3128.7,3128.6,2.262]
[1720714907924,1.45,3128.7,3128.6,2.33117457]
[1720714909321,1.45,3128.7,3128.6,0.06917457]
[1720714909322,3.8798,3128.7,3128.6,0.06917457]
[1720714909556,3.8798,3128.7,3128.2,2.262]
[1720714909967,3.8798,3128.7,3128.3,0.06953869]
[1720714910171,1.45,3128.1,3127.9,6.39396]
[1720714910485,1.45,3128.1,3128.0,0.06962058]
[1720714911447,1.45,3128.1,3127.7,3.1972]
[1720714911781,3.8404,3128.1,3127.7,3.1972]
[1720714911961,1.45,3127.8,3127.5,8.65673]
[1720714912144,1.45,3127.6,3127.5,3.19736]
[1720714912483,1.45,3127.6,3127.4,3.19753]
[1720714912686,1.45,3127.2,3127.0,3.19785]
[1720714912882,1.45,3127.2,3127.1,6.3957]
[1720714913560,1.45,3127.6,3127.1,0.0639536]
[1720714913749,7.32,3128.4,3127.7,3.19723]
[1720714913750,1.45,3127.8,3127.7,3.19723]
[1720714913955,1.45,3127.8,3127.7,5.45923]
[1720714915491,1.45,3127.8,3127.7,8.65646]
[1720714915794,1.45,3128.0,3127.9,3.19703]
[1720714916000,1.45,3128.6,3127.9,3.0]
[1720714916302,1.45,3129.2,3129.1,3.1958]
[1720714918381,1.45,3129.2,3129.0,3.1959]
[1720714918686,1.45,3129.2,3129.1,3.1958]
[1720714918890,1.45,3129.4,3129.2,3.19563]
[1720714919210,1.45,3129.4,3129.1,3.74573]
[1720714919412,1.45,3129.4,3129.2,3.19567]
[1720714919578,1.45,3129.4,3129.3,3.1956]
[1720714920227,1.45,3129.2,3128.8,6.21301]
[1720714920424,1.45,3129.0,3128.9,3.0]
[1720714921936,1.45,3128.8,3128.6,3.19622]
[1720714922110,1.45,3128.8,3128.7,3.0]
[1720714922425,1.45,3128.5,3128.4,3.017]
[1720714922742,1.45,3128.5,3128.4,6.21352]
[1720714922898,1.45,3128.5,3128.4,3.0818446]
[1720714923078,1.45,3128.5,3128.4,0.0648446]
[1720714923278,1.45,3128.8,3128.4,3.2613646]
[1720714923530,1.45,3128.8,3128.7,3.19621]
[1720714923694,1.45,3129.1,3128.7,0.06482639]
[1720714923896,1.45,3129.1,3128.4,3.66279046]
[1720714923897,1.45,3129.1,3128.8,3.19603]
[1720714924084,1.45,3128.9,3128.8,3.19603]
[1720714924710,1.45,3128.9,3128.6,6.21324]
[1720714925091,1.45,3128.9,3128.7,3.19619]
[1720714925342,1.45,3129.1,3128.8,3.19611]
[1720714925626,7.32,3129.5,3129.2,3.1957]
[1720714925627,1.45,3129.3,3129.2,3.1957]
[1720714925810,1.45,3128.7,3128.5,3.19635]
[1720714925978,10.38987957,3130.0,3128.5,3.19635]
[1720714925979,1.45,3129.1,3128.6,6.19625]
[1720714926179,1.45,3128.7,3128.4,6.21347]
[1720714926392,1.45,3128.7,3128.5,3.0]
[1720714926593,1.45,3128.7,3128.5,6.19635]
[1720714927086,1.45,3128.5,3128.2,3.19666]
[1720714927422,2.99832962,3129.2,3128.0,6.21385]
[1720714927423,1.45,3128.2,3128.0,6.21385]
[1720714928920,1.45,3128.2,3128.0,9.41071]
[1720714929231,1.45,3128.2,3127.6,6.21431]
[1720714929437,1.45,3128.2,3128.0,3.19686]
[1720714930077,1.45,3127.9,3127.8,3.19707]
[1720714930282,1.45,3127.9,3127.6,6.21429]
[1720714930283,1.45,3127.9,3127.6,6.21425]
[1720714930487,1.45,3127.9,3127.7,3.19723]
[1720714930624,1.45,3127.9,3127.5,3.19735]
[1720714930962,1.45,3127.7,3127.4,3.19748]
[1720714931164,0.07845005,3128.2,3127.3,3.19764]
[1720714931165,1.45,3127.5,3127.3,3.19764]
[1720714931367,1.45,3127.3,3127.2,3.017]
[1720714931533,2.451,3127.7,3127.0,3.1979]
[1720714931534,1.45,3127.1,3127.0,3.1979]
[1720714931724,1.45,3127.1,3126.8,6.21513]
[1720714931725,1.45,3127.1,3126.8,6.21509]
[1720714932462,1.45,3127.1,3126.8,6.21508]
[1720714933261,1.45,3126.9,3126.6,6.3966]
[1720714933420,1.45,3126.9,3126.7,3.19822]
[1720714934325,1.45,3126.9,3126.7,3.19819]
[1720714934666,1.45,3126.9,3126.8,3.19815]
[1720714936591,1.45,3126.9,3126.8,7.035948]